fUSD/lending_fUSD_20260507
["ID","MTS","AMOUNT","RATE_DAILY","PERIOD"]
[421753328,1778105569000,-1065.13491717,0.00038246,2]
[421753333,1778105569000,-301.2859328,0.00038246,2]
[421753334,1778105569000,-412.2298188,0.00038246,2]
[421753331,1778105569000,-724.83131769,0.00038246,2]
[421753361,1778105569000,-481.18706949,0.00038246,2]
[421753342,1778105569000,-852.7601399,0.00038246,2]
[421753341,1778105569000,-300.0,0.00038246,2]
[421753345,1778105569000,-300.0,0.00038246,2]
[421753343,1778105569000,-300.0,0.00038246,2]
[421753346,1778105569000,-343.40295571,0.00038246,2]
[421753339,1778105569000,-300.0,0.00038246,2]
[421753347,1778105569000,-526.00966879,0.00038246,2]
[421753348,1778105569000,-368.09857022,0.00038246,2]
[421753344,1778105569000,-1793.38851355,0.00038246,2]
[421753349,1778105569000,-1145.24599896,0.00038246,2]
[421753351,1778105569000,-300.0,0.00038246,2]
[421753319,1778105569000,-300.0,0.00038246,2]
[421753340,1778105569000,-474.98520692,0.00038246,2]
[421753323,1778105569000,-300.0,0.00038246,2]
[421753304,1778105569000,-483.27319916,0.00038246,2]
[421753318,1778105569000,-300.0,0.00038246,2]
[421753350,1778105569000,-309.07064608,0.00038246,2]
[421753298,1778105569000,-451.13853711,0.00038246,2]
[421753308,1778105569000,-560.69488131,0.00038246,2]
[421753299,1778105569000,-300.0,0.00038246,2]
[421753305,1778105569000,-309.32134718,0.00038246,2]
[421753296,1778105569000,-481.18706949,0.00038246,2]
[421753309,1778105569000,-300.0,0.00038246,2]
[421753301,1778105569000,-300.0,0.00038246,2]
[421753310,1778105569000,-1092.83356842,0.00038246,2]
[421753312,1778105569000,-300.0,0.00038246,2]
[421753300,1778105569000,-300.0,0.00038246,2]
[421753295,1778105569000,-300.0,0.00038246,2]
[421753313,1778105569000,-468.74824467,0.00038246,2]
[421753311,1778105569000,-300.0,0.00038246,2]
[421753306,1778105569000,-300.0,0.00038246,2]
[421753303,1778105569000,-300.0,0.00038246,2]
[421753302,1778105569000,-300.0,0.00038246,2]
[421753297,1778105569000,-300.0,0.00038246,2]
[421753307,1778105569000,-300.0,0.00038246,2]
[421753324,1778105569000,-603.45144378,0.00038246,2]
[421753325,1778105569000,-300.0,0.00038246,2]
[421753316,1778105569000,-300.0,0.00038246,2]
[421753320,1778105569000,-491.85958444,0.00038246,2]
[421753315,1778105569000,-300.0,0.00038246,2]
[421753314,1778105569000,-300.0,0.00038246,2]
[421753317,1778105569000,-300.0,0.00038246,2]
[421753321,1778105569000,-300.0,0.00038246,2]
[421753322,1778105569000,-300.0,0.00038246,2]
[421753360,1778105569000,-300.0,0.00038246,2]
[421753368,1778105569000,-300.0,0.00038246,2]
[421753354,1778105569000,-300.0,0.00038246,2]
[421753391,1778105569000,-891.9241332,0.00038246,2]
[421753389,1778105569000,-526.86051061,0.00038246,2]
[421753394,1778105569000,-300.0,0.00038246,2]
[421753395,1778105569000,-301.2859328,0.00038246,2]
[421753393,1778105569000,-724.83131769,0.00038246,2]
[421753390,1778105569000,-1065.13491717,0.00038246,2]
[421753388,1778105569000,-300.0,0.00038246,2]
[421753392,1778105569000,-309.13065885,0.00038246,2]
[421753397,1778105569000,-300.06118393,0.00038246,2]
[421753400,1778105569000,-852.7601399,0.00038246,2]
[421753396,1778105569000,-300.0,0.00038246,2]
[421753359,1778105569000,-463.08064867,0.00038246,2]
[421753387,1778105569000,-603.45144378,0.00038246,2]
[421753407,1778105569000,-309.07064608,0.00038246,2]
[421753399,1778105569000,-300.0,0.00038246,2]
[421753401,1778105569000,-300.0,0.00038246,2]
[421753404,1778105569000,-343.40295571,0.00038246,2]
[421753403,1778105569000,-300.0,0.00038246,2]
[421753405,1778105569000,-738.12598581,0.00038246,2]
[421753402,1778105569000,-1793.38851355,0.00038246,2]
[421753406,1778105569000,-1145.24599896,0.00038246,2]
[421753409,1778105569000,-862.96230178,0.00038246,2]
[421753410,1778105569000,-519.66520652,0.00038246,2]
[421753411,1778105569000,-324.31225651,0.00038246,2]
[421753413,1778105569000,-310.3725982,0.00038246,2]
[421753412,1778105569000,-300.0,0.00038246,2]
[421753408,1778105569000,-300.0,0.00038246,2]
[421753384,1778105569000,-341.92124282,0.00038246,2]
[421753398,1778105569000,-300.0,0.00038246,2]
[421753386,1778105569000,-300.0,0.00038246,2]
[421753385,1778105569000,-300.0,0.00038246,2]
[421753352,1778105569000,-862.96230178,0.00038246,2]
[421753353,1778105569000,-300.0,0.00038246,2]
[421753357,1778105569000,-300.0,0.00038246,2]
[421753355,1778105569000,-537.17655498,0.00038246,2]
[421753356,1778105569000,-310.3725982,0.00038246,2]
[421753358,1778105569000,-581.67009202,0.00038246,2]
[421753364,1778105569000,-300.0,0.00038246,2]
[421753362,1778105569000,-300.0,0.00038246,2]
[421753367,1778105569000,-300.0,0.00038246,2]
[421753366,1778105569000,-300.0,0.00038246,2]
[421753363,1778105569000,-451.13853711,0.00038246,2]
[421753370,1778105569000,-309.32134718,0.00038246,2]
[421753365,1778105569000,-300.0,0.00038246,2]
[421753371,1778105569000,-300.0,0.00038246,2]
[421753373,1778105569000,-300.0,0.00038246,2]
[421753375,1778105569000,-300.0,0.00038246,2]
[421753376,1778105569000,-300.0,0.00038246,2]
[421753377,1778105569000,-300.00000001,0.00038246,2]
[421753378,1778105569000,-300.0,0.00038246,2]
[421753381,1778105569000,-300.0,0.00038246,2]
[421753380,1778105569000,-596.62576207,0.00038246,2]
[421753382,1778105569000,-300.0,0.00038246,2]
[421753383,1778105569000,-491.85958444,0.00038246,2]
[421753374,1778105569000,-1092.83356842,0.00038246,2]
[421753369,1778105569000,-483.27319916,0.00038246,2]
[421753372,1778105569000,-300.0,0.00038246,2]
[421753379,1778105569000,-300.0,0.00038246,2]
[421753452,1778105570000,-852.7601399,0.00038246,2]
[421753449,1778105570000,-300.06118393,0.00038246,2]
[421753447,1778105570000,-301.2859328,0.00038246,2]
[421753450,1778105570000,-300.0,0.00038246,2]
[421753454,1778105570000,-1793.38851355,0.00038246,2]
[421753451,1778105570000,-300.0,0.00038246,2]
[421753455,1778105570000,-343.40295571,0.00038246,2]
[421753446,1778105570000,-300.0,0.00038246,2]
[421753448,1778105570000,-300.0,0.00038246,2]
[421753445,1778105570000,-724.83131769,0.00038246,2]
[421753459,1778105570000,-862.96230178,0.00038246,2]
[421753453,1778105570000,-300.0,0.00038246,2]
[421753456,1778105570000,-1145.24599896,0.00038246,2]
[421753480,1778105570000,-404.13802102,0.00038246,2]
[421753461,1778105570000,-310.3725982,0.00038246,2]
[421753467,1778105570000,-300.0,0.00038246,2]
[421753458,1778105570000,-395.30336188,0.00038246,2]
[421753460,1778105570000,-469.00907567,0.00038246,2]
[421753468,1778105570000,-300.0,0.00038246,2]
[421753465,1778105570000,-481.18706949,0.00038246,2]
[421753464,1778105570000,-300.0,0.00038246,2]
[421753463,1778105570000,-463.08064867,0.00038246,2]
[421753462,1778105570000,-300.0,0.00038246,2]
[421753466,1778105570000,-451.13853711,0.00038246,2]
[421753470,1778105570000,-300.0,0.00038246,2]
[421753469,1778105570000,-300.0,0.00038246,2]
[421753442,1778105570000,-1065.13491717,0.00038246,2]
[421753457,1778105570000,-309.07064608,0.00038246,2]
[421753443,1778105570000,-891.9241332,0.00038246,2]
[421753514,1778105570000,-309.32134718,0.00038246,2]
[421753438,1778105570000,-300.0,0.00038246,2]
[421753471,1778105570000,-483.27319916,0.00038246,2]
[421753419,1778105570000,-451.13853711,0.00038246,2]
[421753417,1778105570000,-481.18706949,0.00038246,2]
[421753418,1778105570000,-369.36311672,0.00038246,2]
[421753416,1778105570000,-300.0,0.00038246,2]
[421753415,1778105570000,-463.08064867,0.00038246,2]
[421753414,1778105570000,-300.0,0.00038246,2]
[421753421,1778105570000,-300.0,0.00038246,2]
[421753420,1778105570000,-300.0,0.00038246,2]
[421753430,1778105570000,-300.0,0.00038246,2]
[421753429,1778105570000,-1092.83356842,0.00038246,2]
[421753431,1778105570000,-300.0,0.00038246,2]
[421753432,1778105570000,-486.68807297,0.00038246,2]
[421753440,1778105570000,-300.0,0.00038246,2]
[421753422,1778105570000,-300.0,0.00038246,2]
[421753426,1778105570000,-309.32134718,0.00038246,2]
[421753425,1778105570000,-300.0,0.00038246,2]
[421753424,1778105570000,-483.27319916,0.00038246,2]
[421753428,1778105570000,-300.0,0.00038246,2]
[421753427,1778105570000,-300.0,0.00038246,2]
[421753434,1778105570000,-300.0,0.00038246,2]
[421753433,1778105570000,-300.0,0.00038246,2]
[421753444,1778105570000,-309.13065885,0.00038246,2]
[421753441,1778105570000,-526.86051061,0.00038246,2]
[421753435,1778105570000,-491.85958444,0.00038246,2]
[421753437,1778105570000,-300.0,0.00038246,2]
[421753436,1778105570000,-363.42720589,0.00038246,2]
[421753439,1778105570000,-603.45144378,0.00038246,2]
[421753423,1778105570000,-300.0,0.00038246,2]
[421753482,1778105570000,-603.45144378,0.00038246,2]
[421753536,1778105570000,-300.0,0.00038246,2]
[421753474,1778105570000,-1092.83356842,0.00038246,2]
[421753509,1778105570000,-300.0,0.00038246,2]
[421753508,1778105570000,-300.0,0.00038246,2]
[421753519,1778105570000,-300.0,0.00038246,2]
[421753520,1778105570000,-300.0,0.00038246,2]
[421753511,1778105570000,-300.0,0.00038246,2]
[421753510,1778105570000,-300.0,0.00038246,2]
[421753517,1778105570000,-1092.83356842,0.00038246,2]
[421753516,1778105570000,-300.00000001,0.00038246,2]
[421753515,1778105570000,-300.0,0.00038246,2]
[421753512,1778105570000,-300.0,0.00038246,2]
[421753518,1778105570000,-300.0,0.00038246,2]
[421753534,1778105570000,-300.06118393,0.00038246,2]
[421753513,1778105570000,-483.27319916,0.00038246,2]
[421753522,1778105570000,-300.0,0.00038246,2]
[421753533,1778105570000,-385.24888443,0.00038246,2]
[421753532,1778105570000,-301.2859328,0.00038246,2]
[421753523,1778105570000,-300.0,0.00038246,2]
[421753521,1778105570000,-491.85958444,0.00038246,2]
[421753524,1778105570000,-603.45144378,0.00038246,2]
[421753525,1778105570000,-300.0,0.00038246,2]
[421753526,1778105570000,-300.0,0.00038246,2]
[421753527,1778105570000,-526.86051061,0.00038246,2]
[421753529,1778105570000,-891.9241332,0.00038246,2]
[421753530,1778105570000,-309.13065885,0.00038246,2]
[421753531,1778105570000,-724.83131769,0.00038246,2]
[421753535,1778105570000,-300.0,0.00038246,2]
[421753481,1778105570000,-300.0,0.00038246,2]
[421753498,1778105570000,-1145.24599896,0.00038246,2]
[421753500,1778105570000,-862.96230178,0.00038246,2]
[421753528,1778105570000,-1065.13491717,0.00038246,2]
[421753503,1778105570000,-300.0,0.00038246,2]
[421753497,1778105570000,-343.40295571,0.00038246,2]
[421753472,1778105570000,-309.32134718,0.00038246,2]
[421753477,1778105570000,-300.0,0.00038246,2]
[421753478,1778105570000,-300.0,0.00038246,2]
[421753476,1778105570000,-300.0,0.00038246,2]
[421753473,1778105570000,-300.00000001,0.00038246,2]
[421753479,1778105570000,-491.85958444,0.00038246,2]
[421753483,1778105570000,-300.0,0.00038246,2]
[421753484,1778105570000,-526.86051061,0.00038246,2]
[421753485,1778105570000,-1065.13491717,0.00038246,2]
[421753488,1778105570000,-724.83131769,0.00038246,2]
[421753490,1778105570000,-300.0,0.00038246,2]
[421753486,1778105570000,-891.9241332,0.00038246,2]
[421753487,1778105570000,-309.13065885,0.00038246,2]
[421753475,1778105570000,-489.59051486,0.00038246,2]
[421753489,1778105570000,-301.2859328,0.00038246,2]
[421753494,1778105570000,-852.7601399,0.00038246,2]
[421753504,1778105570000,-463.08064867,0.00038246,2]
[421753502,1778105570000,-300.0,0.00038246,2]
[421753499,1778105570000,-309.07064608,0.00038246,2]
[421753507,1778105570000,-451.13853711,0.00038246,2]
[421753495,1778105570000,-300.0,0.00038246,2]
[421753501,1778105570000,-310.3725982,0.00038246,2]
[421753505,1778105570000,-300.0,0.00038246,2]
[421753496,1778105570000,-1793.38851355,0.00038246,2]
[421753492,1778105570000,-300.0,0.00038246,2]
[421753491,1778105570000,-300.06118393,0.00038246,2]
[421753506,1778105570000,-481.18706949,0.00038246,2]
[421753493,1778105570000,-300.0,0.00038246,2]
[421753568,1778105571000,-891.9241332,0.00038246,2]
[421753569,1778105571000,-309.13065884,0.00038246,2]
[421753573,1778105571000,-300.00000001,0.00038246,2]
[421753562,1778105571000,-300.0,0.00038246,2]
[421753564,1778105571000,-300.0,0.00038246,2]
[421753566,1778105571000,-526.86051061,0.00038246,2]
[421753570,1778105571000,-724.83131769,0.00038246,2]
[421753565,1778105571000,-476.87909536,0.00038246,2]
[421753567,1778105571000,-1065.13491717,0.00038246,2]
[421753574,1778105571000,-594.32815016,0.00038246,2]
[421753579,1778105571000,-343.40295571,0.00038246,2]
[421753572,1778105571000,-400.26513049,0.00038246,2]
[421753575,1778105571000,-508.38469429,0.00038246,2]
[421753586,1778105571000,-463.08064867,0.00038246,2]
[421753576,1778105571000,-300.0,0.00038246,2]
[421753578,1778105571000,-1793.38851355,0.00038246,2]
[421753577,1778105571000,-852.7601399,0.00038246,2]
[421753582,1778105571000,-862.96230178,0.00038246,2]
[421753581,1778105571000,-309.07064608,0.00038246,2]
[421753560,1778105571000,-300.0,0.00038246,2]
[421753584,1778105571000,-310.3725982,0.00038246,2]
[421753571,1778105571000,-301.2859328,0.00038246,2]
[421753558,1778105571000,-1092.83356842,0.00038246,2]
[421753545,1778105571000,-300.0,0.00038246,2]
[421753563,1778105571000,-603.45144378,0.00038246,2]
[421753580,1778105571000,-1145.24599896,0.00038246,2]
[421753538,1778105571000,-1793.38851355,0.00038246,2]
[421753542,1778105571000,-862.96230178,0.00038246,2]
[421753541,1778105571000,-309.07064608,0.00038246,2]
[421753537,1778105571000,-852.7601399,0.00038246,2]
[421753540,1778105571000,-1145.24599896,0.00038246,2]
[421753539,1778105571000,-343.40295571,0.00038246,2]
[421753543,1778105571000,-300.0,0.00038246,2]
[421753546,1778105571000,-463.08064867,0.00038246,2]
[421753544,1778105571000,-310.3725982,0.00038246,2]
[421753561,1778105571000,-491.85958445,0.00038246,2]
[421753547,1778105571000,-300.0,0.00038246,2]
[421753549,1778105571000,-451.13853711,0.00038246,2]
[421753550,1778105571000,-300.0,0.00038246,2]
[421753553,1778105571000,-300.0,0.00038246,2]
[421753554,1778105571000,-363.82962561,0.00038246,2]
[421753557,1778105571000,-543.79786294,0.00038246,2]
[421753552,1778105571000,-300.0,0.00038246,2]
[421753555,1778105571000,-309.32134718,0.00038246,2]
[421753551,1778105571000,-300.0,0.00038246,2]
[421753556,1778105571000,-483.27319916,0.00038246,2]
[421753559,1778105571000,-501.19154709,0.00038246,2]
[421753548,1778105571000,-481.18706949,0.00038246,2]
[421753583,1778105571000,-300.0,0.00038246,2]
[421753590,1778105571000,-300.0,0.00038246,2]
[421753587,1778105571000,-300.0,0.00038246,2]
[421753619,1778105571000,-300.0,0.00038246,2]
[421753621,1778105571000,-300.0,0.00038246,2]
[421753620,1778105571000,-603.45144378,0.00038246,2]
[421753618,1778105571000,-1092.83356843,0.00038246,2]
[421753614,1778105571000,-300.0,0.00038246,2]
[421753616,1778105571000,-483.27319916,0.00038246,2]
[421753615,1778105571000,-307.96647756,0.00038246,2]
[421753617,1778105571000,-515.37023705,0.00038246,2]
[421753623,1778105571000,-300.0,0.00038246,2]
[421753634,1778105571000,-1204.00680796,0.00038329,120]
[421753622,1778105571000,-300.0,0.00038246,2]
[421753625,1778105571000,-363.72090456,0.00038246,2]
[421753632,1778105571000,-271.5036769,0.0003825,120]
[421753630,1778105571000,-165.784738,0.0003825,120]
[421753626,1778105571000,-186.7459471,0.0003825,120]
[421753633,1778105571000,-13874.59,0.00038276,60]
[421753628,1778105571000,-210.1366791,0.0003825,120]
[421753631,1778105571000,-254.522855,0.0003825,120]
[421753629,1778105571000,-283.6996602,0.0003825,120]
[421753636,1778105571000,-150.0,0.00038356,2]
[421753585,1778105571000,-300.0,0.00038246,2]
[421753635,1778105571000,-191.0,0.00038356,2]
[421753627,1778105571000,-380.3344272,0.0003825,120]
[421753613,1778105571000,-300.0,0.00038246,2]
[421753624,1778105571000,-300.0,0.00038246,2]
[421753611,1778105571000,-481.18706949,0.00038246,2]
[421753598,1778105571000,-603.45144378,0.00038246,2]
[421753612,1778105571000,-451.13853712,0.00038246,2]
[421753589,1778105571000,-451.13853711,0.00038246,2]
[421753592,1778105571000,-300.0,0.00038246,2]
[421753597,1778105571000,-442.49840123,0.00038246,2]
[421753591,1778105571000,-300.0,0.00038246,2]
[421753588,1778105571000,-481.18706949,0.00038246,2]
[421753593,1778105571000,-300.0,0.00038246,2]
[421753595,1778105571000,-309.32134718,0.00038246,2]
[421753596,1778105571000,-1092.83356842,0.00038246,2]
[421753599,1778105571000,-526.86051061,0.00038246,2]
[421753594,1778105571000,-483.27319916,0.00038246,2]
[421753600,1778105571000,-1065.13491717,0.00038246,2]
[421753601,1778105571000,-891.9241332,0.00038246,2]
[421753607,1778105571000,-310.37259821,0.00038246,2]
[421753606,1778105571000,-862.96230178,0.00038246,2]
[421753605,1778105571000,-309.07064607,0.00038246,2]
[421753608,1778105571000,-300.0,0.00038246,2]
[421753602,1778105571000,-1793.38851354,0.00038246,2]
[421753603,1778105571000,-343.40295572,0.00038246,2]
[421753604,1778105571000,-1145.24599896,0.00038246,2]
[421753609,1778105571000,-463.08064867,0.00038246,2]
[421753610,1778105571000,-429.00475475,0.00038246,2]
[421753676,1778105572000,-85060.0,0.000393,30]
[421753670,1778105572000,-160.0,0.000392,70]
[421753677,1778105572000,-157.75,0.000393,30]
[421753675,1778105572000,-408.0,0.00039289,2]
[421753672,1778105572000,-408.0,0.00039214,2]
[421753671,1778105572000,-408.0,0.00039204,2]
[421753681,1778105572000,-408.0,0.00039372,2]
[421753668,1778105572000,-408.0,0.00039175,2]
[421753667,1778105572000,-408.0,0.0003915,2]
[421753674,1778105572000,-514.13,0.00039243,120]
[421753678,1778105572000,-163.0,0.00039309,11]
[421753673,1778105572000,-458.74,0.00039243,120]
[421753689,1778105572000,-408.0,0.00039434,2]
[421753679,1778105572000,-286.0,0.00039322,2]
[421753682,1778105572000,-2631.44,0.00039376,2]
[421753685,1778105572000,-1607.67189532,0.000394,120]
[421753687,1778105572000,-408.0,0.00039426,2]
[421753684,1778105572000,-1725.88725888,0.000394,120]
[421753690,1778105572000,-408.0,0.00039435,2]
[421753686,1778105572000,-408.0,0.00039414,2]
[421753693,1778105572000,-500.0,0.00039451,60]
[421753683,1778105572000,-1257.92979027,0.000394,120]
[421753694,1778105572000,-500.0,0.00039451,60]
[421753688,1778105572000,-408.0,0.00039432,2]
[421753665,1778105572000,-4469.74212905,0.00039105,120]
[421753680,1778105572000,-408.0,0.00039342,2]
[421753666,1778105572000,-150.0,0.00039105,120]
[421753642,1778105572000,-171.3288137,0.0003836,120]
[421753669,1778105572000,-150.73225442,0.00039182,120]
[421753695,1778105572000,-500.0,0.00039451,60]
[421753639,1778105572000,-157.99482979,0.0003836,120]
[421753637,1778105572000,-198.0,0.00038356,2]
[421753640,1778105572000,-171.32881372,0.0003836,120]
[421753638,1778105572000,-1560.0,0.00038356,30]
[421753646,1778105572000,-253.6098031,0.00038614,2]
[421753644,1778105572000,-152.0,0.00038512,10]
[421753643,1778105572000,-150.73225439,0.0003836,120]
[421753645,1778105572000,-158.31004264,0.00038573,2]
[421753647,1778105572000,-150.73225442,0.00038634,120]
[421753648,1778105572000,-157.75,0.000387,30]
[421753650,1778105572000,-500.0,0.00038772,21]
[421753664,1778105572000,-2560.5904227,0.00039,120]
[421753649,1778105572000,-429.47548534,0.00038744,120]
[421753655,1778105572000,-1560.0,0.00038904,30]
[421753651,1778105572000,-1200.0,0.00038772,21]
[421753654,1778105572000,-500.16742932,0.00038904,5]
[421753653,1778105572000,-925.0,0.00038836,2]
[421753657,1778105572000,-150.73225442,0.00038908,120]
[421753656,1778105572000,-171.32881372,0.00038908,120]
[421753658,1778105572000,-184.320957,0.00038919,10]
[421753662,1778105572000,-36200.83817361,0.00039,120]
[421753661,1778105572000,-81503.25,0.00039,7]
[421753663,1778105572000,-846.31373215,0.00039,2]
[421753660,1778105572000,-3106.08319247,0.00039,7]
[421753659,1778105572000,-148821.25985186,0.00039,120]
[421753652,1778105572000,-150.0,0.00038834,2]
[421753691,1778105572000,-500.0,0.00039451,60]
[421753641,1778105572000,-150.73225442,0.0003836,120]
[421753697,1778105572000,-310.20542133,0.00039451,60]
[421753731,1778105572000,-150.0,0.00039457,120]
[421753729,1778105572000,-150.73225442,0.00039456,120]
[421753728,1778105572000,-171.32881372,0.00039456,120]
[421753725,1778105572000,-1560.0,0.00039452,30]
[421753726,1778105572000,-429.47548534,0.00039456,120]
[421753730,1778105572000,-150.0,0.00039457,120]
[421753735,1778105572000,-406.57176173,0.000395,120]
[421753732,1778105572000,-408.0,0.00039467,2]
[421753727,1778105572000,-157.99482979,0.00039456,120]
[421753736,1778105572000,-408.0,0.000395,2]
[421753692,1778105572000,-500.0,0.00039451,60]
[421753738,1778105572000,-408.0,0.00039525,2]
[421753723,1778105572000,-1000.0,0.00039452,120]
[421753739,1778105572000,-408.0,0.00039549,2]
[421753747,1778105572000,-500.0,0.00039594,21]
[421753748,1778105572000,-1200.0,0.00039594,21]
[421753742,1778105572000,-500.0,0.0003957,2]
[421753741,1778105572000,-286.0,0.00039562,30]
[421753745,1778105572000,-17645.43203612,0.00039583,10]
[421753744,1778105572000,-150.0,0.00039579,2]
[421753746,1778105572000,-500.0,0.00039594,120]
[421753743,1778105572000,-500.0,0.0003957,2]
[421753750,1778105572000,-161.0,0.0003961,120]
[421753749,1778105572000,-2637.01540258,0.000396,2]
[421753751,1778105572000,-161.0,0.0003961,120]
[421753752,1778105572000,-589241.1299332,0.0003964,30]
[421753740,1778105572000,-150.0,0.00039562,30]
[421753733,1778105572000,-565.28297451,0.00039478,31]
[421753737,1778105572000,-160.0,0.000395,71]
[421753724,1778105572000,-1931.11635548,0.00039452,120]
[421753734,1778105572000,-5118.01986841,0.000395,120]
[421753707,1778105572000,-1532.5724,0.00039451,60]
[421753696,1778105572000,-500.0,0.00039451,60]
[421753698,1778105572000,-1532.5724,0.00039451,60]
[421753704,1778105572000,-1532.5724,0.00039451,60]
[421753706,1778105572000,-1532.5724,0.00039451,60]
[421753701,1778105572000,-1532.5724,0.00039451,60]
[421753699,1778105572000,-1532.5724,0.00039451,60]
[421753702,1778105572000,-1532.5724,0.00039451,60]
[421753703,1778105572000,-1532.5724,0.00039451,60]
[421753705,1778105572000,-1532.5724,0.00039451,60]
[421753700,1778105572000,-1532.5724,0.00039451,60]
[421753710,1778105572000,-1532.5724,0.00039451,60]
[421753708,1778105572000,-1532.5724,0.00039451,60]
[421753720,1778105572000,-1000.0,0.00039452,120]
[421753711,1778105572000,-1532.5724,0.00039451,60]
[421753721,1778105572000,-1000.0,0.00039452,120]
[421753714,1778105572000,-1532.5724,0.00039451,60]
[421753713,1778105572000,-1532.5724,0.00039451,60]
[421753716,1778105572000,-1532.5724,0.00039451,60]
[421753715,1778105572000,-1532.5724,0.00039451,60]
[421753717,1778105572000,-1532.57405139,0.00039451,60]
[421753719,1778105572000,-1000.0,0.00039452,120]
[421753712,1778105572000,-1532.5724,0.00039451,60]
[421753718,1778105572000,-1000.0,0.00039452,120]
[421753722,1778105572000,-1000.0,0.00039452,120]
[421753709,1778105572000,-1532.5724,0.00039451,60]
[421753756,1778105573000,-134.93541131,0.0003964,30]
[421753754,1778105573000,-495.84238325,0.00023156,2]
[421753753,1778105573000,-2144.0,0.0003964,30]
[421753755,1778105573000,-432.15761675,0.00023156,2]
[421753759,1778105573000,-2194.3804186,0.00013947,2]
[421753758,1778105573000,-1188.10369384,0.00013947,2]
[421753757,1778105573000,-169.39,0.00013303,2]
[421753764,1778105575000,-225.37122365,0.00012,2]
[421753763,1778105575000,-224.62877635,0.00012,2]
[421753762,1778105575000,-150.0,0.00011999,2]
[421753761,1778105575000,-300.0,0.00011998,2]
[421753760,1778105575000,-300.0,0.00011998,2]
[421753765,1778105576000,-274.62877635,0.00012,2]
[421753768,1778105576000,-274.37122365,0.00012,2]
[421753766,1778105576000,-500.0,0.00012,2]
[421753767,1778105576000,-151.0,0.00012,2]
[421753769,1778105667000,-225.62877635,0.00012,2]
[421753770,1778105821000,-151.0,0.00012,2]
[421753771,1778105822000,-151.0,0.00012,2]
[421753775,1778105823000,-149.0,0.00011999,2]
[421753776,1778105823000,-2.0,0.00011999,2]
[421753774,1778105823000,-151.0,0.00011999,2]
[421753773,1778105823000,-151.0,0.00012,2]
[421753772,1778105823000,-151.0,0.00012,2]
[421753778,1778105824000,-151.0,0.00011999,2]
[421753777,1778105824000,-151.0,0.00011999,2]
[421753780,1778105824000,-151.0,0.00011999,2]
[421753779,1778105824000,-151.0,0.00011999,2]
[421753781,1778105824000,-151.0,0.00011999,2]
[421753785,1778105825000,-10.0,0.00011999,2]
[421753784,1778105825000,-141.0,0.00011999,2]
[421753783,1778105825000,-151.0,0.00011999,2]
[421753782,1778105825000,-151.0,0.00011999,2]
[421753786,1778105832000,2000.0,0.0003013,120]
[421753787,1778105970000,-250.0,0.00012,2]
[421753788,1778106124000,-151.0,0.00012,2]
[421753789,1778106125000,-151.0,0.00012,2]
[421753790,1778106125000,-151.0,0.00012,2]
[421753791,1778106125000,-151.0,0.00012,2]
[421753797,1778106126000,-123.58438508,0.00012,2]
[421753796,1778106126000,-40.41561492,0.00012,2]
[421753795,1778106126000,-110.58438508,0.00012,2]
[421753794,1778106126000,-90.24245088,0.00012,2]
[421753793,1778106126000,-60.75754912,0.00012,2]
[421753792,1778106126000,-151.0,0.00012,2]
[421753799,1778106128000,-151.0,0.00012,2]
[421753798,1778106128000,-151.0,0.00012,2]
[421753801,1778106128000,2000.0,0.0003013,120]
[421753800,1778106128000,-151.0,0.00012,2]
[421753802,1778106268000,-235.57713536,0.00012,2]
[421753803,1778106424000,-181.27283127,0.00012,2]